[Event "Skalica Rapid 2020"]
[Site "Skalica"]
[Date "2020.08.29"]
[Round "6.16"]
[White "Blaho, Stefan"]
[Black "Chlpek, Daniel"]
[Result "1/2-1/2"]
[ECO "D00"]
[WhiteElo "2090"]
[BlackElo "1879"]
[Annotator "NA"]
[PlyCount "56"]
[EventDate "2020.08.29"]
[EventType "swiss"]
[EventCountry "SVK"]
[SourceTitle "playchess.com"]
[Source "ChessBase"]
[SourceQuality "1"]
[TimeControl "600+5"]

1. d4 {[%emt 0:00:00]} d5 {[%emt 0:00:00]} 2. Bf4 {[%emt 0:00:00]} Nf6 {[%emt 0:00:00]} 3. e3 {[%emt 0:00:02]} c5 {[%emt 0:00:00]} 4. c3 {[%emt 0:00:01]} Nc6 {[%emt 0:00:00]} 5. Bd3 {[%emt 0:00:30]} Qb6 {[%emt 0:00:05]} 6. Qc1 {[%emt 0:00:37]} Bg4 {[%emt 0:00:13]} 7. Nd2 {[%emt 0:00:06]} e6 {[%emt 0:00:01]} 8. h3 {[%emt 0:00:10]} Bh5 {[%emt 0:00:05]} 9. Ngf3 {[%emt 0:00:05]} Rc8 {[%emt 0:00:00]} 10. Qb1 {[%emt 0:01:17]} cxd4 {[%emt 0:00:03]} 11. exd4 {[%emt 0:00:05]} Be7 {[%emt 0:00:10]} 12. O-O {[%emt 0:00:03]} O-O {[%emt 0:00:03]} 13. Re1 {[%emt 0:00:10]} Bg6 {[%emt 0:00:04]} 14. Bxg6 {[%emt 0:00:38]} hxg6 {[%emt 0:00:01]} 15. Re3 {[%emt 0:00:50]} Rfd8 {[%emt 0:00:16]} 16. Ne5 {[%emt 0:00:10]} Nxe5 {[%emt 0:00:04]} 17. Bxe5 {[%emt 0:00:01]} Bd6 {[%emt 0:00:14]} 18. Nf3 {[%emt 0:01:11]} Ne4 {[%emt 0:00:10]} 19. Re2 {[%emt 0:00:18]} Qb5 {[%emt 0:00:29]} 20. Qe1 {[%emt 0:00:25]} a5 {[%emt 0:00:25]} 21. Bxd6 {[%emt 0:00:16]} Rxd6 {[%emt 0:00:01]} 22. Ne5 {[%emt 0:00:04]} Rb6 {[%emt 0:00:18]} 23. c4 {[%emt 0:00:26]} Qb4 {[%emt 0:00:29]} 24. c5 {[%emt 0:00:09]} Qxe1+ {[%emt 0:00:24]} 25. Raxe1 {[%emt 0:00:03]} Rb4 {[%emt 0:00:04]} 26. f3 {[%emt 0:00:22]} Ng3 {[%emt 0:00:21]} 27. Rd2 {[%emt 0:00:01]} Nf5 {[%emt 0:00:05]} 28. Red1 {[%emt 0:00:08]} Ne3 {[%emt 0:00:28]} 1/2-1/2

[Event "Skalica Rapid 2020"]
[Site "Skalica"]
[Date "2020.08.29"]
[Round "6.17"]
[White "Gzib, David"]
[Black "Vadila Ondrej"]
[Result "1/2-1/2"]
[ECO "B38"]
[WhiteElo "1770"]
[BlackElo "2057"]
[Annotator "NA"]
[PlyCount "31"]
[EventDate "2020.08.29"]
[EventType "swiss"]
[EventCountry "SVK"]
[SourceTitle "playchess.com"]
[Source "ChessBase"]
[SourceQuality "1"]
[TimeControl "600+5"]

1. e4 {[%emt 0:00:06]} c5 {[%emt 0:00:00]} 2. Nf3 {[%emt 0:00:02]} g6 {[%emt 0:00:02]} 3. d4 {[%emt 0:00:11]} cxd4 {[%emt 0:00:01]} 4. Nxd4 {[%emt 0:00:10]} Bg7 {[%emt 0:00:01]} 5. Be3 {[%emt 0:00:02]} Nc6 {[%emt 0:00:02]} 6. c4 {[%emt 0:00:12]} Nf6 {[%emt 0:00:02]} 7. Nc3 {[%emt 0:00:02]} O-O {[%emt 0:00:02]} 8. f3 {[%emt 0:00:29]} d6 {[%emt 0:00:02]} 9. Qd2 {[%emt 0:00:16]} Nxd4 {[%emt 0:00:12]} 10. Bxd4 {[%emt 0:00:02]} Bd7 {[%emt 0:00:01]} 11. Nd5 {[%emt 0:00:18]} Nxd5 {[%emt 0:00:10]} 12. cxd5 {[%emt 0:00:03]} Bxd4 {[%emt 0:00:13]} 13. Qxd4 {[%emt 0:00:01]} Qa5+ {[%emt 0:00:01]} 14. Qd2 {[%emt 0:00:01]} Qb6 {[%emt 0:00:18]} 15. Qf2 {[%emt 0:01:30]} Qb4+ {[%emt 0:00:26]} 16. Qd2 {[%emt 0:00:02]} 1/2-1/2

[Event "Skalica Rapid 2020"]
[Site "Skalica"]
[Date "2020.08.29"]
[Round "6.18"]
[White "Nemsak Denis"]
[Black "Bidulsky, Matej"]
[Result "0-1"]
[ECO "A40"]
[WhiteElo "1869"]
[BlackElo "1548"]
[Annotator "NA"]
[PlyCount "100"]
[EventDate "2020.08.29"]
[EventType "swiss"]
[EventCountry "SVK"]
[SourceTitle "playchess.com"]
[Source "ChessBase"]
[SourceQuality "1"]
[TimeControl "600+5"]

1. c4 {[%emt 0:00:00]} g6 {[%emt 0:00:00]} 2. Nc3 {[%emt 0:00:00]} Bg7 {[%emt 0:00:00]} 3. e4 {[%emt 0:00:05]} e6 {[%emt 0:00:03]} 4. d4 {[%emt 0:00:00]} Ne7 {[%emt 0:00:01]} 5. f4 {[%emt 0:00:00]} d5 {[%emt 0:00:02]} 6. cxd5 {[%emt 0:00:00]} exd5 {[%emt 0:00:01]} 7. e5 {[%emt 0:00:01]} Bf5 {[%emt 0:00:02]} 8. Nf3 {[%emt 0:00:02]} Nd7 {[%emt 0:00:02]} 9. Bd3 {[%emt 0:00:02]} Be6 {[%emt 0:00:06]} 10. O-O {[%emt 0:00:02]} c6 {[%emt 0:00:12]} 11. Qe1 {[%emt 0:00:03]} Nf5 {[%emt 0:00:01]} 12. Qf2 {[%emt 0:00:10]} h6 {[%emt 0:00:04]} 13. Bd2 {[%emt 0:00:04]} Qb6 {[%emt 0:00:01]} 14. b3 {[%emt 0:00:06]} O-O-O {[%emt 0:00:23]} 15. Na4 {[%emt 0:00:09]} Qc7 {[%emt 0:00:07]} 16. Rfc1 {[%emt 0:00:01]} Kb8 {[%emt 0:00:01]} 17. b4 {[%emt 0:00:03]} Nb6 {[%emt 0:00:13]} 18. Nc5 {[%emt 0:00:05]} Qe7 {[%emt 0:00:20]} 19. b5 {[%emt 0:00:01]} f6 {[%emt 0:00:12]} 20. bxc6 {[%emt 0:00:03]} bxc6 {[%emt 0:00:02]} 21. Rab1 {[%emt 0:00:11]} Ka8 {[%emt 0:00:02]} 22. Ba6 {[%emt 0:00:03]} Rb8 {[%emt 0:00:01]} 23. Bb4 {[%emt 0:00:05]} Qe8 {[%emt 0:00:19]} 24. a4 {[%emt 0:00:07]} Bc8 {[%emt 0:00:02]} 25. a5 {[%emt 0:00:27]} Nd7 {[%emt 0:00:08]} 26. Nxd7 {[%emt 0:00:31]} Qxd7 {[%emt 0:00:05]} 27. Bxc8 {[%emt 0:00:10]} Rhxc8 {[%emt 0:00:02]} 28. Bc5 {[%emt 0:00:06]} Rb5 {[%emt 0:00:28]} 29. Rxb5 {[%emt 0:00:17]} cxb5 {[%emt 0:00:02]} 30. a6 {[%emt 0:00:00]} Rc6 {[%emt 0:00:08]} 31. Qa2 {[%emt 0:00:01]} fxe5 {[%emt 0:00:28]} 32. fxe5 {[%emt 0:00:03]} Bf8 {[%emt 0:00:09]} 33. e6 {[%emt 0:00:10]} Qd8 {[%emt 0:01:41]} 34. Ne5 {[%emt 0:00:12]} Rc8 {[%emt 0:00:28]} 35. Nd7 {[%emt 0:00:16]} Ne7 {[%emt 0:00:44]} 36. Bxe7 {[%emt 0:00:45]} Rxc1+ {[%emt 0:00:02]} 37. Kf2 {[%emt 0:00:05]} Qc7 {[%emt 0:00:37]} 38. Qxd5+ {[%emt 0:00:02]} Qc6 {[%emt 0:00:02]} 39. Qxc6+ {[%emt 0:00:30]} Rxc6 {[%emt 0:00:03]} 40. Bxf8 {[%emt 0:00:01]} Rxe6 {[%emt 0:00:02]} 41. Nc5 {[%emt 0:00:06]} Rf6+ {[%emt 0:00:04]} 42. Ke3 {[%emt 0:00:04]} Rxf8 {[%emt 0:00:01]} 43. d5 {[%emt 0:00:01]} Rf5 {[%emt 0:00:10]} 44. Ke4 {[%emt 0:00:01]} Kb8 {[%emt 0:00:02]} 45. g4 {[%emt 0:00:06]} Rf1 {[%emt 0:00:01]} 46. d6 {[%emt 0:00:04]} Rc1 {[%emt 0:00:09]} 47. Kd5 {[%emt 0:00:04]} Kc8 {[%emt 0:00:04]} 48. Kc6 {[%emt 0:01:56]} b4 {[%emt 0:00:02]} 49. Kb5 {[%emt 0:01:32]} Rxc5+ {[%emt 0:00:02]} 50. Kxc5 {[%emt 0:00:01]} b3 {[%emt 0:00:01]} 0-1

[Event "Skalica Rapid 2020"]
[Site "Skalica"]
[Date "2020.08.29"]
[Round "7.1"]
[White "Vadila, Ondrej"]
[Black "Sevcikova, Lucia"]
[Result "1-0"]
[ECO "D00"]
[WhiteElo "2057"]
[BlackElo "1801"]
[Annotator "NA"]
[PlyCount "77"]
[EventDate "2020.08.29"]
[EventType "swiss"]
[EventCountry "SVK"]
[SourceTitle "playchess.com"]
[Source "ChessBase"]
[SourceQuality "1"]
[TimeControl "600+5"]

1. d4 {[%emt 0:00:00]} d5 {[%emt 0:00:00]} 2. Bf4 {[%emt 0:00:00]} Nf6 {[%emt 0:00:00]} 3. e3 {[%emt 0:00:00]} c5 {[%emt 0:00:00]} 4. c3 {[%emt 0:00:01]} e6 {[%emt 0:00:02]} 5. Nd2 {[%emt 0:00:03]} Bd6 {[%emt 0:00:03]} 6. Bg3 {[%emt 0:00:01]} Qc7 {[%emt 0:00:07]} 7. Ngf3 {[%emt 0:00:17]} Nbd7 {[%emt 0:00:10]} 8. Bd3 $11 {[%emt 0:00:32]} e5 {[%emt 0:00:14]} 9. dxe5 {[%emt 0:00:03]} Nxe5 {[%emt 0:00:02]} 10. Nxe5 {[%emt 0:00:01]} Bxe5 {[%emt 0:00:01]} 11. e4 {[%emt 0:00:24]} dxe4 {[%emt 0:00:22]} 12. Nxe4 {[%emt 0:00:04]} Nxe4 {[%emt 0:00:05]} 13. Bxe4 {[%emt 0:00:02]} Bd7 {[%emt 0:00:32]} 14. Qf3 {[%emt 0:00:25]} Bxg3 {[%emt 0:00:32]} 15. hxg3 {[%emt 0:00:05]} O-O-O {[%emt 0:00:12]} 16. O-O-O {[%emt 0:00:23]} Rdf8 {[%emt 0:01:31]} 17. Bxb7+ {[%emt 0:00:19]} Qxb7 {[%emt 0:00:10]} 18. Qxb7+ {[%emt 0:00:01]} Kxb7 {[%emt 0:00:01]} 19. Rxd7+ {[%emt 0:00:02]} Kb6 {[%emt 0:00:00]} 20. Re1 {[%emt 0:01:35]} Rd8 {[%emt 0:00:21]} 21. Rxf7 {[%emt 0:00:23]} Rhf8 {[%emt 0:00:17]} 22. Ree7 {[%emt 0:00:13]} Rxf7 {[%emt 0:00:01]} 23. Rxf7 {[%emt 0:00:01]} Rg8 {[%emt 0:00:02]} 24. g4 {[%emt 0:01:05]} a6 {[%emt 0:00:05]} 25. b3 {[%emt 0:00:15]} Kc6 {[%emt 0:00:03]} 26. Kc2 {[%emt 0:00:40]} Re8 {[%emt 0:00:12]} 27. Kd3 {[%emt 0:00:01]} Rd8+ {[%emt 0:00:03]} 28. Kc4 {[%emt 0:00:11]} Rd2 {[%emt 0:00:06]} 29. a4 {[%emt 0:00:09]} Re2 {[%emt 0:00:15]} 30. f3 {[%emt 0:00:30]} Rxg2 {[%emt 0:00:06]} 31. Rxg7 {[%emt 0:00:01]} h5 {[%emt 0:00:22]} 32. Rg6+ {[%emt 0:00:05]} Kb7 {[%emt 0:00:00]} 33. gxh5 {[%emt 0:00:05]} Rf2 {[%emt 0:00:02]} 34. Rf6 {[%emt 0:00:04]} Rh2 {[%emt 0:00:04]} 35. h6 {[%emt 0:00:01]} Rh5 {[%emt 0:00:03]} 36. f4 {[%emt 0:00:11]} Rh4 {[%emt 0:00:04]} 37. Rf7+ {[%emt 0:00:04]} Kb6 {[%emt 0:00:04]} 38. h7 {[%emt 0:00:02]} Rh6 {[%emt 0:00:05]} 39. Rf6+ {[%emt 0:00:03]} 1-0

[Event "Skalica Rapid 2020"]
[Site "Skalica"]
[Date "2020.08.29"]
[Round "7.2"]
[White "Yankelevich, Lev"]
[Black "Pacher Milan"]
[Result "0-1"]
[ECO "D38"]
[WhiteElo "2388"]
[BlackElo "2452"]
[Annotator "ChessBase"]
[PlyCount "43"]
[EventDate "2020.08.29"]
[EventType "swiss"]
[EventCountry "SVK"]
[SourceTitle "playchess.com"]
[Source "ChessBase"]
[SourceQuality "1"]
[TimeControl "600+5"]

1. Nf3 {[%emt 0:00:00]} d5 {[%emt 0:00:00]} 2. d4 {[%emt 0:00:00]} Nf6 {[%emt 0:00:01]} 3. c4 {[%emt 0:00:00]} e6 {[%emt 0:00:01]} 4. Nc3 {[%emt 0:00:02]} Bb4 {[%emt 0:00:05]} 5. Qa4+ {[%emt 0:00:30]} Nc6 {[%emt 0:00:01]} 6. e3 {[%emt 0:00:02]} O-O {[%emt 0:00:03]} 7. Bd2 {[%emt 0:00:04]} Re8 {[%emt 0:00:07]} 8. cxd5 {[%emt 0:01:23]} exd5 {[%emt 0:00:02]} 9. Bd3 {[%emt 0:00:04]} a6 {[%emt 0:00:50]} 10. O-O {[%emt 0:00:12]} Bd6 {[%emt 0:00:02]} 11. h3 {[%emt 0:00:07]} Nb4 {[%emt 0:00:52]} 12. Bb1 {[%emt 0:00:19]} Ne4 {[%emt 0:00:47]} 13. a3 {[%emt 0:00:05]} Nxd2 {[%emt 0:00:15]} 14. Nxd2 {[%emt 0:00:03]} Bxh3 {[%emt 0:00:08]} 15. gxh3 {[%emt 0:03:04]} Qg5+ {[%emt 0:00:01]} 16. Kh1 {[%emt 0:00:08]} Qh5 {[%emt 0:00:07]} 17. Kg2 {[%emt 0:00:20]} Qg5+ {[%emt 0:00:02]} 18. Kf3 {[%emt 0:00:28]} Nc6 {[%emt 0:02:43]} 19. Qd1 {[%emt 0:00:51]} Nxd4+ {[%emt 0:00:06]} 20. exd4 {[%emt 0:01:06]} Qf4+ {[%emt 0:00:01]} 21. Kg2 {[%emt 0:00:02]} Qh2+ {[%emt 0:00:02]} 22. Kf3 {[%emt 0:00:05]} 0-1

[Event "Skalica Rapid 2020"]
[Site "Skalica"]
[Date "2020.08.29"]
[Round "7.2"]
[White "Havelka, Ondrej"]
[Black "Ihnat, Marek"]
[Result "1-0"]
[ECO "D85"]
[WhiteElo "2157"]
[BlackElo "1738"]
[Annotator "ChessBase"]
[PlyCount "51"]
[EventDate "2020.08.29"]
[EventType "swiss"]
[EventCountry "SVK"]
[SourceTitle "playchess.com"]
[Source "ChessBase"]
[SourceQuality "1"]
[TimeControl "600+5"]

1. d4 {[%emt 0:00:00]} Nf6 {[%emt 0:00:00]} 2. c4 {[%emt 0:00:00]} g6 {[%emt 0:00:00]} 3. Nc3 d5 4. cxd5 {[%emt 0:00:00]} Nxd5 5. e4 Nxc3 {[%emt 0:00:00]} 6. bxc3 {[%emt 0:00:02]} Bg7 {[%emt 0:00:00]} 7. Qa4+ {[%emt 0:00:03]} Bd7 {[%emt 0:00:08]} 8. Qa3 {[%emt 0:00:01]} O-O {[%emt 0:00:05]} 9. Nf3 {[%emt 0:00:01]} c5 {[%emt 0:00:05]} 10. Qxc5 {[%emt 0:00:02]} Nc6 {[%emt 0:00:10]} 11. Be2 {[%emt 0:00:20]} Rc8 {[%emt 0:00:00]} 12. Qa3 {[%emt 0:00:02]} a6 {[%emt 0:00:13]} 13. O-O {[%emt 0:00:05]} Na5 {[%emt 0:00:00]} 14. Bg5 {[%emt 0:00:08]} Re8 {[%emt 0:00:11]} 15. Rab1 {[%emt 0:00:05]} b5 {[%emt 0:00:05]} 16. Nd2 {[%emt 0:00:40]} h6 {[%emt 0:00:02]} 17. Bh4 {[%emt 0:00:17]} g5 {[%emt 0:00:06]} 18. Bg3 {[%emt 0:00:01]} Qb6 {[%emt 0:00:04]} 19. h4 {[%emt 0:00:32]} Be6 {[%emt 0:00:08]} 20. hxg5 {[%emt 0:00:29]} hxg5 {[%emt 0:00:04]} 21. Rfc1 {[%emt 0:00:05]} Bc4 {[%emt 0:00:06]} 22. Bg4 {[%emt 0:00:36]} Rcd8 {[%emt 0:00:28]} 23. Qb4 {[%emt 0:00:12]} Bd3 {[%emt 0:00:20]} 24. Rb2 {[%emt 0:00:22]} Nc4 {[%emt 0:00:03]} 25. Nxc4 {[%emt 0:00:03]} Bxc4 {[%emt 0:00:02]} 26. Qxc4 {[%emt 0:00:03]} 1-0

[Event "Skalica Rapid 2020"]
[Site "Skalica"]
[Date "2020.08.29"]
[Round "7.3"]
[White "Szucs, Vladimir"]
[Black "Tupy, Emil"]
[Result "1-0"]
[ECO "D96"]
[WhiteElo "2088"]
[BlackElo "1538"]
[Annotator "ChessBase"]
[PlyCount "91"]
[EventDate "2020.08.29"]
[EventType "swiss"]
[EventCountry "SVK"]
[SourceTitle "playchess.com"]
[Source "ChessBase"]
[SourceQuality "1"]
[TimeControl "600+5"]

1. d4 {[%emt 0:00:00]} d5 {[%emt 0:00:00]} 2. c4 {[%emt 0:00:00]} c6 {[%emt 0:00:01]} 3. Nf3 {[%emt 0:00:00]} Nf6 {[%emt 0:00:01]} 4. Nc3 {[%emt 0:00:00]} g6 {[%emt 0:00:07]} 5. cxd5 {[%emt 0:00:03]} Nxd5 {[%emt 0:00:05]} 6. e4 {[%emt 0:00:02]} Nxc3 {[%emt 0:00:03]} 7. bxc3 {[%emt 0:00:01]} Bg7 {[%emt 0:00:01]} 8. Bc4 {[%emt 0:00:04]} O-O {[%emt 0:00:03]} 9. O-O {[%emt 0:00:03]} Nd7 {[%emt 0:00:27]} 10. e5 {[%emt 0:00:08]} Nb6 {[%emt 0:00:07]} 11. Bb3 {[%emt 0:00:05]} Be6 {[%emt 0:00:16]} 12. Bxe6 fxe6 13. Ng5 {[%emt 0:00:59]} Qd5 {[%emt 0:00:28]} 14. Qg4 {[%emt 0:00:07]} Rf5 {[%emt 0:00:18]} 15. Qh4 {[%emt 0:00:44]} h6 {[%emt 0:00:46]} 16. Nf3 {[%emt 0:00:03]} Re8 {[%emt 0:00:58]} 17. Qg4 {[%emt 0:00:14]} Ref8 {[%emt 0:00:34]} 18. Nh4 {[%emt 0:00:32]} g5 {[%emt 0:01:36]} 19. Nxf5 {[%emt 0:00:06]} exf5 {[%emt 0:00:06]} 20. Qe2 {[%emt 0:00:08]} f4 {[%emt 0:00:09]} 21. f3 {[%emt 0:00:05]} Nc4 {[%emt 0:00:14]} 22. Rb1 {[%emt 0:00:10]} b6 {[%emt 0:00:02]} 23. a4 {[%emt 0:00:16]} e6 {[%emt 0:00:15]} 24. Qa2 {[%emt 0:00:31]} a5 {[%emt 0:00:33]} 25. Re1 {[%emt 0:00:28]} h5 {[%emt 0:00:07]} 26. Qe2 {[%emt 0:00:10]} h4 {[%emt 0:00:30]} 27. h3 {[%emt 0:00:06]} Rf5 {[%emt 0:00:20]} 28. Qe4 {[%emt 0:00:13]} Qd7 {[%emt 0:00:41]} 29. Rd1 {[%emt 0:00:14]} Nxe5 {[%emt 0:00:26]} 30. Rxb6 {[%emt 0:00:27]} Qd6 {[%emt 0:01:48]} 31. Re1 {[%emt 0:00:11]} Nc4 {[%emt 0:00:06]} 32. Rxc6 {[%emt 0:00:07]} Qd5 {[%emt 0:00:12]} 33. Qxe6+ {[%emt 0:00:18]} Qxe6 {[%emt 0:00:08]} 34. Rexe6 {[%emt 0:00:02]} Ne3 {[%emt 0:00:12]} 35. Bxe3 {[%emt 0:00:11]} fxe3 {[%emt 0:00:01]} 36. Rxe3 {[%emt 0:00:03]} Rd5 {[%emt 0:00:09]} 37. Re7 {[%emt 0:00:13]} Bf8 {[%emt 0:00:14]} 38. Rb7 {[%emt 0:00:28]} Rd6 {[%emt 0:00:12]} 39. Rc8 {[%emt 0:00:08]} Re6 {[%emt 0:00:09]} 40. Rbb8 {[%emt 0:00:04]} Rf6 {[%emt 0:00:06]} 41. d5 {[%emt 0:00:18]} Kg7 {[%emt 0:00:01]} 42. Rxf8 {[%emt 0:00:07]} Rxf8 {[%emt 0:00:02]} 43. Rxf8 {[%emt 0:00:02]} Kxf8 {[%emt 0:00:01]} 44. Kf2 {[%emt 0:00:01]} Ke7 {[%emt 0:00:01]} 45. Ke3 {[%emt 0:00:01]} Kd6 {[%emt 0:00:00]} 46. Ke4 1-0

[Event "Skalica Rapid 2020"]
[Site "Skalica"]
[Date "2020.08.29"]
[Round "7.4"]
[White "Kubat, Pavel"]
[Black "Pechac, Jergus"]
[Result "0-1"]
[ECO "A48"]
[WhiteElo "2066"]
[BlackElo "2430"]
[Annotator "ChessBase"]
[PlyCount "72"]
[EventDate "2020.08.29"]
[EventType "swiss"]
[EventCountry "SVK"]
[SourceTitle "playchess.com"]
[Source "ChessBase"]
[SourceQuality "1"]
[TimeControl "600+5"]

1. d4 {[%emt 0:00:00]} Nf6 {[%emt 0:00:00]} 2. Bf4 {[%emt 0:00:05]} g6 {[%emt 0:00:02]} 3. h3 {[%emt 0:00:09]} Bg7 {[%emt 0:00:07]} 4. e3 {[%emt 0:00:01]} O-O {[%emt 0:00:03]} 5. Nf3 {[%emt 0:00:15]} c5 {[%emt 0:00:02]} 6. Nbd2 {[%emt 0:00:25]} cxd4 {[%emt 0:00:20]} 7. exd4 {[%emt 0:00:03]} Nc6 {[%emt 0:00:01]} 8. c3 {[%emt 0:00:02]} d6 {[%emt 0:00:02]} 9. Be2 {[%emt 0:00:24]} Re8 {[%emt 0:00:06]} 10. O-O {[%emt 0:00:06]} e5 {[%emt 0:00:02]} 11. Bh2 {[%emt 0:00:25]} e4 {[%emt 0:00:12]} 12. Ne1 {[%emt 0:00:11]} d5 {[%emt 0:00:07]} 13. Nc2 {[%emt 0:00:06]} h5 {[%emt 0:00:07]} 14. Re1 {[%emt 0:01:13]} Nh7 {[%emt 0:00:16]} 15. c4 {[%emt 0:00:13]} Nxd4 {[%emt 0:00:08]} 16. cxd5 {[%emt 0:01:48]} Qxd5 {[%emt 0:00:26]} 17. Nxd4 {[%emt 0:00:57]} Bxd4 {[%emt 0:00:08]} 18. Nb3 {[%emt 0:00:57]} Rd8 {[%emt 0:00:08]} 19. Nxd4 {[%emt 0:00:38]} Qxd4 {[%emt 0:00:02]} 20. Qxd4 {[%emt 0:00:18]} Rxd4 {[%emt 0:00:02]} 21. Rac1 {[%emt 0:00:40]} Be6 {[%emt 0:00:12]} 22. Rc7 {[%emt 0:00:11]} Bxa2 {[%emt 0:00:05]} 23. Rxb7 {[%emt 0:00:02]} Be6 {[%emt 0:00:10]} 24. Be5 {[%emt 0:00:11]} Rdd8 {[%emt 0:00:13]} 25. Kh2 {[%emt 0:01:11]} Nf8 {[%emt 0:00:06]} 26. Bb5 {[%emt 0:00:11]} Rd2 {[%emt 0:00:07]} 27. Bc6 {[%emt 0:00:26]} Rxf2 {[%emt 0:00:23]} 28. Bxe4 {[%emt 0:00:02]} a5 {[%emt 0:00:06]} 29. Rxf7 {[%emt 0:00:16]} Bxf7 {[%emt 0:00:03]} 30. Bxa8 {[%emt 0:00:02]} a4 {[%emt 0:00:10]} 31. Bc6 {[%emt 0:00:08]} Bb3 {[%emt 0:00:03]} 32. Re4 {[%emt 0:00:10]} Ne6 {[%emt 0:00:04]} 33. Bxa4 {[%emt 0:00:08]} Bd5 {[%emt 0:00:03]} 34. Bg3 {[%emt 0:00:21]} Rxb2 {[%emt 0:00:13]} 35. Rxe6 {[%emt 0:00:31]} Rxg2+ {[%emt 0:00:03]} 36. Kh1 {[%emt 0:00:06]} Rxg3+ {[%emt 0:00:02]} 0-1

[Event "Skalica Rapid 2020"]
[Site "Skalica"]
[Date "2020.08.29"]
[Round "7.4"]
[White "Sperat Czar, Nicolas"]
[Black "Meszaros, Casey Ryan"]
[Result "1-0"]
[ECO "C71"]
[WhiteElo "1737"]
[BlackElo "1478"]
[Annotator "NA RC"]
[PlyCount "113"]
[EventDate "2020.08.29"]
[EventType "swiss"]
[EventCountry "SVK"]
[SourceTitle "playchess.com"]
[Source "ChessBase"]
[SourceQuality "1"]
[TimeControl "600+5"]

1. e4 {[%emt 0:00:00]} e5 {[%emt 0:00:00]} 2. Nf3 {[%emt 0:00:00]} Nc6 {[%emt 0:00:00]} 3. Bb5 {[%emt 0:00:04]} a6 {[%emt 0:00:00]} 4. Ba4 {[%emt 0:00:02]} d6 {[%emt 0:00:00]} 5. d4 {[%emt 0:00:11]} exd4 {[%emt 0:00:04]} 6. Nxd4 {[%emt 0:00:00]} Bd7 {[%emt 0:00:22]} 7. Nxc6 {[%emt 0:00:08]} Bxc6 {[%emt 0:00:01]} 8. Bxc6+ {[%emt 0:00:06]} bxc6 {[%emt 0:00:01]} 9. O-O {[%emt 0:00:13]} Be7 {[%emt 0:00:10]} 10. Nd2 {[%emt 0:00:28]} Nf6 {[%emt 0:00:06]} 11. Re1 {[%emt 0:00:17]} O-O {[%emt 0:00:08]} 12. Nf3 {[%emt 0:00:04]} Re8 {[%emt 0:00:08]} 13. h3 {[%emt 0:00:20]} h6 {[%emt 0:00:19]} 14. Bf4 {[%emt 0:00:06]} Bf8 {[%emt 0:00:07]} 15. Qd3 {[%emt 0:00:16]} Qd7 {[%emt 0:02:32]} 16. c4 {[%emt 0:00:15]} Re7 {[%emt 0:00:42]} 17. Rad1 {[%emt 0:00:08]} Qe8 {[%emt 0:01:42]} 18. e5 {[%emt 0:00:19]} dxe5 {[%emt 0:01:20]} 19. Bxe5 {[%emt 0:00:10]} Ra7 {[%emt 0:01:11]} 20. Qd4 {[%emt 0:00:26]} Rb7 {[%emt 0:00:16]} 21. Bxf6 {[%emt 0:00:09]} gxf6 {[%emt 0:00:11]} 22. Qxf6 {[%emt 0:00:05]} Rxe1+ {[%emt 0:00:14]} 23. Rxe1 {[%emt 0:00:02]} Qd7 {[%emt 0:00:13]} 24. Ne5 {[%emt 0:00:43]} Qe6 {[%emt 0:00:46]} 25. Qxe6 {[%emt 0:00:08]} fxe6 {[%emt 0:00:01]} 26. Nd3 {[%emt 0:00:32]} Kf7 {[%emt 0:00:22]} 27. Ne5+ {[%emt 0:00:11]} Kf6 {[%emt 0:00:15]} 28. Nd7+ {[%emt 0:00:12]} Ke7 {[%emt 0:00:05]} 29. Nxf8 {[%emt 0:00:03]} Kxf8 {[%emt 0:00:01]} 30. b3 {[%emt 0:00:12]} Ke7 {[%emt 0:00:06]} 31. f4 {[%emt 0:00:13]} Kf6 {[%emt 0:00:03]} 32. Re5 {[%emt 0:00:21]} Rb8 {[%emt 0:00:19]} 33. Kf2 {[%emt 0:00:05]} Rd8 {[%emt 0:00:10]} 34. Ke2 {[%emt 0:00:02]} Rg8 {[%emt 0:00:24]} 35. g4 {[%emt 0:00:09]} Rd8 {[%emt 0:00:00]} 36. Ra5 {[%emt 0:00:15]} Ra8 {[%emt 0:00:16]} 37. Rc5 {[%emt 0:00:04]} Rg8 {[%emt 0:00:07]} 38. Rxc6 {[%emt 0:00:05]} h5 {[%emt 0:00:01]} 39. Kf3 {[%emt 0:00:15]} hxg4+ {[%emt 0:00:01]} 40. hxg4 {[%emt 0:00:02]} Rh8 {[%emt 0:00:01]} 41. f5 {[%emt 0:00:13]} Rh3+ {[%emt 0:00:20]} 42. Kf4 {[%emt 0:00:03]} Rh2 {[%emt 0:00:04]} 43. Rxe6+ {[%emt 0:00:04]} Kf7 {[%emt 0:00:02]} 44. Rxa6 {[%emt 0:00:06]} Rf2+ {[%emt 0:00:02]} 45. Kg5 {[%emt 0:00:03]} Re2 {[%emt 0:00:03]} 46. Rf6+ {[%emt 0:00:09]} Kg7 {[%emt 0:00:04]} 47. Re6 {[%emt 0:00:04]} Rxa2 {[%emt 0:00:03]} 48. Re7+ {[%emt 0:00:03]} Kg8 {[%emt 0:00:02]} 49. Kg6 {[%emt 0:00:05]} Kf8 {[%emt 0:00:03]} 50. Rxc7 {[%emt 0:00:02]} Rg2 {[%emt 0:00:02]} 51. g5 {[%emt 0:00:07]} Re2 {[%emt 0:00:07]} 52. Rc8+ {[%emt 0:00:14]} Ke7 {[%emt 0:00:02]} 53. f6+ {[%emt 0:00:01]} Kd6 {[%emt 0:00:02]} 54. f7 {[%emt 0:00:08]} Re6+ {[%emt 0:00:03]} 55. Kg7 {[%emt 0:00:04]} Re7 {[%emt 0:00:02]} 56. Kg8 {[%emt 0:00:06]} Rxf7 {[%emt 0:00:07]} 57. Kxf7 {[%emt 0:00:03]} 1-0